[Event "Titled Tuesday Blitz July 18 Early 2023"]
[White "ajedrez-facil"]
[Black "Nan M K Khine Hlyan"]
[BlackFideId "13002899"]
[WhiteElo "2219"]
[BlackElo "1752"]
[Result "1-0"]
[Round "4"]
[TimeControl "180+2"]
[Date "2023.07.18"]
[WhiteClock "0:00:21"]
[BlackClock "0:00:13"]
[Board "216"]

1. e4 {[%clk 0:03:00]}  d6 {[%clk 0:02:59]} 2. d4 {[%clk 0:03:00]}  Nf6 {[%clk 0:02:59]} 3. Nc3 {[%clk 0:03:01]}  g6 {[%clk 0:02:58]} 4. Bg5 {[%clk 0:03:02]}  Bg7 {[%clk 0:02:58]} 5. e5 {[%clk 0:03:02]}  dxe5 {[%clk 0:02:57]} 6. dxe5 {[%clk 0:03:03]}  Qxd1+ {[%clk 0:02:56]} 7. Rxd1 {[%clk 0:03:04]}  Nfd7 {[%clk 0:02:50]} 8. f4 {[%clk 0:03:04]}  f6 {[%clk 0:02:42]} 9. exf6 {[%clk 0:03:02]}  exf6 {[%clk 0:02:41]} 10. Bh4 {[%clk 0:03:02]}  O-O {[%clk 0:02:40]} 11. Bc4+ {[%clk 0:03:02]}  Kh8 {[%clk 0:02:39]} 12. Nf3 {[%clk 0:03:01]}  Nb6 {[%clk 0:02:37]} 13. Bb3 {[%clk 0:03:00]}  Bg4 {[%clk 0:02:16]} 14. Kf2 {[%clk 0:02:59]}  Nc6 {[%clk 0:02:14]} 15. Rhe1 {[%clk 0:02:52]}  h6 {[%clk 0:01:52]} 16. h3 {[%clk 0:02:45]}  Bxf3 {[%clk 0:01:50]} 17. Kxf3 {[%clk 0:02:46]}  g5 {[%clk 0:01:50]} 18. Bf2 {[%clk 0:02:46]}  f5 {[%clk 0:01:41]} 19. Nb5 {[%clk 0:02:23]}  h5 {[%clk 0:01:25]} 20. fxg5 {[%clk 0:02:22]}  Bxb2 {[%clk 0:01:22]} 21. Nxc7 {[%clk 0:02:21]}  Rac8 {[%clk 0:01:16]} 22. Bxb6 {[%clk 0:02:14]}  axb6 {[%clk 0:01:15]} 23. Ne6 {[%clk 0:02:08]}  Ne5+ {[%clk 0:01:11]} 24. Rxe5 {[%clk 0:02:05]}  Bxe5 {[%clk 0:01:09]} 25. Nxf8 {[%clk 0:02:04]}  Rxf8 {[%clk 0:01:08]} 26. Rd7 {[%clk 0:02:00]}  Bd4 {[%clk 0:00:58]} 27. g6 {[%clk 0:01:54]}  Bg7 {[%clk 0:00:55]} 28. Rxb7 {[%clk 0:01:49]}  Rc8 {[%clk 0:00:55]} 29. Rxb6 {[%clk 0:01:42]}  Rc3+ {[%clk 0:00:51]} 30. Kf4 {[%clk 0:01:40]}  Bh6+ {[%clk 0:00:47]} 31. Kxf5 {[%clk 0:01:41]}  Rc5+ {[%clk 0:00:44]} 32. Ke4 {[%clk 0:01:35]}  Kg7 {[%clk 0:00:41]} 33. a4 {[%clk 0:01:13]}  Rg5 {[%clk 0:00:38]} 34. Kf3 {[%clk 0:01:09]}  Rf5+ {[%clk 0:00:36]} 35. Ke2 {[%clk 0:01:06]}  Re5+ {[%clk 0:00:33]} 36. Kf1 {[%clk 0:01:03]}  Be3 {[%clk 0:00:31]} 37. Re6 {[%clk 0:01:01]}  Rf5+ {[%clk 0:00:29]} 38. Ke2 {[%clk 0:00:59]}  Bc5 {[%clk 0:00:28]} 39. Rc6 {[%clk 0:00:54]}  Bb4 {[%clk 0:00:26]} 40. Bf7 {[%clk 0:00:50]}  Re5+ {[%clk 0:00:25]} 41. Kd3 {[%clk 0:00:49]}  Re1 {[%clk 0:00:23]} 42. g4 {[%clk 0:00:47]}  hxg4 {[%clk 0:00:22]} 43. hxg4 {[%clk 0:00:48]}  Rg1 {[%clk 0:00:21]} 44. Rc4 {[%clk 0:00:45]}  Ba5 {[%clk 0:00:20]} 45. Re4 {[%clk 0:00:42]}  Rg3+ {[%clk 0:00:19]} 46. Kc4 {[%clk 0:00:38]}  Rg1 {[%clk 0:00:19]} 47. Kb5 {[%clk 0:00:38]}  Rd1 {[%clk 0:00:19]} 48. Kxa5 {[%clk 0:00:36]}  Rd8 {[%clk 0:00:20]} 49. c4 {[%clk 0:00:29]}  Ra8+ {[%clk 0:00:21]} 50. Kb4 {[%clk 0:00:28]}  Rb8+ {[%clk 0:00:20]} 51. Kc3 {[%clk 0:00:29]}  Rc8 {[%clk 0:00:20]} 52. Re1 {[%clk 0:00:27]}  Rd8 {[%clk 0:00:21]} 53. Ra1 {[%clk 0:00:27]}  Ra8 {[%clk 0:00:21]} 54. a5 {[%clk 0:00:27]}  Ra6 {[%clk 0:00:21]} 55. Kb4 {[%clk 0:00:27]}  Kf6 {[%clk 0:00:20]} 56. Kb5 {[%clk 0:00:27]}  Ra8 {[%clk 0:00:20]} 57. a6 {[%clk 0:00:27]}  Rd8 {[%clk 0:00:21]} 58. a7 {[%clk 0:00:27]}  Rd2 {[%clk 0:00:20]} 59. a8=Q {[%clk 0:00:26]}  Rb2+ {[%clk 0:00:21]} 60. Kc5 {[%clk 0:00:25]}  Kg7 {[%clk 0:00:21]} 61. Qf3 {[%clk 0:00:24]}  Rb8 {[%clk 0:00:18]} 62. Qc3+ {[%clk 0:00:23]}  Kh6 {[%clk 0:00:16]} 63. Rh1+ {[%clk 0:00:21]}  Kg5 {[%clk 0:00:15]} 64. Qe5+ {[%clk 0:00:20]}  Kxg4 {[%clk 0:00:15]} 65. Be6+ {[%clk 0:00:21]}  Kf3 {[%clk 0:00:14]} 66. Rh3+ {[%clk 0:00:21]}  Kf2 {[%clk 0:00:13]} 67. Qe3+ {[%clk 0:00:21]}  Kg2 {[%clk 0:00:13]} 68. Rg3+ {[%clk 0:00:21]}  Kh2 {[%clk 0:00:13]} 69. Qg1# {[%clk 0:00:21]} 1-0


[Site "https://www.chess.com"]

[Event "Titled Tuesday Blitz July 18 Early 2023"]
[White "Duda, Jan-Krzysztof"]
[Black "Jones, Gawain C B"]
[WhiteFideId "1170546"]
[BlackFideId "409561"]
[WhiteElo "3025"]
[BlackElo "2930"]
[Result "0-1"]
[Round "5"]
[TimeControl "180+2"]
[Date "2023.07.18"]
[WhiteClock "0:00:00"]
[BlackClock "0:00:05"]
[Board "4"]

1. d4 {[%clk 0:03:00]}  d5 {[%clk 0:03:00]} 2. Bg5 {[%clk 0:02:57]}  f6 {[%clk 0:02:58]} 3. Bd2 {[%clk 0:02:54]}  Nc6 {[%clk 0:02:57]} 4. e3 {[%clk 0:02:54]}  e5 {[%clk 0:02:57]} 5. Nf3 {[%clk 0:02:26]}  e4 {[%clk 0:02:54]} 6. Ng1 {[%clk 0:02:25]}  Be6 {[%clk 0:02:43]} 7. Bb5 {[%clk 0:02:18]}  f5 {[%clk 0:02:41]} 8. Nh3 {[%clk 0:02:10]}  Nf6 {[%clk 0:02:40]} 9. a3 {[%clk 0:02:06]}  Qd7 {[%clk 0:02:12]} 10. Bb4 {[%clk 0:02:04]}  Bxb4+ {[%clk 0:02:05]} 11. axb4 {[%clk 0:02:03]}  a6 {[%clk 0:02:01]} 12. Qd2 {[%clk 0:01:55]}  O-O {[%clk 0:02:00]} 13. Be2 {[%clk 0:01:51]}  Qd6 {[%clk 0:01:56]} 14. c3 {[%clk 0:01:50]}  Nd8 {[%clk 0:01:34]} 15. Na3 {[%clk 0:01:46]}  Bd7 {[%clk 0:01:25]} 16. c4 {[%clk 0:01:22]}  Ne6 {[%clk 0:01:23]} 17. O-O {[%clk 0:01:22]}  c6 {[%clk 0:01:15]} 18. b5 {[%clk 0:01:02]}  axb5 {[%clk 0:01:08]} 19. cxb5 {[%clk 0:01:03]}  g5 {[%clk 0:00:52]} 20. Kh1 {[%clk 0:00:57]}  f4 {[%clk 0:00:42]} 21. Nc2 {[%clk 0:00:43]}  Rxa1 {[%clk 0:00:26]} 22. Rxa1 {[%clk 0:00:43]}  Kh8 {[%clk 0:00:24]} 23. Qb4 {[%clk 0:00:39]}  Qxb4 {[%clk 0:00:18]} 24. Nxb4 {[%clk 0:00:39]}  f3 {[%clk 0:00:19]} 25. Bf1 {[%clk 0:00:26]}  g4 {[%clk 0:00:18]} 26. Nf4 {[%clk 0:00:24]}  Nxf4 {[%clk 0:00:18]} 27. exf4 {[%clk 0:00:25]}  cxb5 {[%clk 0:00:17]} 28. g3 {[%clk 0:00:19]}  Rc8 {[%clk 0:00:16]} 29. Kg1 {[%clk 0:00:12]}  Kg7 {[%clk 0:00:16]} 30. Kh1 {[%clk 0:00:12]}  Kf7 {[%clk 0:00:16]} 31. Kg1 {[%clk 0:00:12]}  Ke6 {[%clk 0:00:17]} 32. h3 {[%clk 0:00:10]}  h5 {[%clk 0:00:17]} 33. hxg4 {[%clk 0:00:04]}  hxg4 {[%clk 0:00:17]} 34. Rb1 {[%clk 0:00:03]}  Ne8 {[%clk 0:00:14]} 35. Ra1 {[%clk 0:00:02]}  Nd6 {[%clk 0:00:14]} 36. Rb1 {[%clk 0:00:02]}  Nf5 {[%clk 0:00:12]} 37. Re1 {[%clk 0:00:01]}  Nxd4 {[%clk 0:00:11]} 38. Rd1 {[%clk 0:00:02]}  Ne2+ {[%clk 0:00:07]} 39. Bxe2 {[%clk 0:00:02]}  fxe2 {[%clk 0:00:08]} 40. Re1 {[%clk 0:00:03]}  Rc4 {[%clk 0:00:07]} 41. Na2 {[%clk 0:00:01]}  Rc2 {[%clk 0:00:08]} 42. Nc3 {[%clk 0:00:02]}  d4 {[%clk 0:00:06]} 43. Nxe2 {[%clk 0:00:01]}  Rd2 {[%clk 0:00:05]} 44. Kf1 {[%clk 0:00:01]}  b4 {[%clk 0:00:05]} 45. b3 {[%clk 0:00:01]}  Bb5 {[%clk 0:00:05]} 46. Kg2 {[%clk 0:00:01]}  Rxe2 {[%clk 0:00:05]} 47. Rh1 {[%clk 0:00:01]}  d3 {[%clk 0:00:05]} 48. Rh6+ {[%clk 0:00:01]}  Kd7 {[%clk 0:00:05]} 49. Rh7+ {[%clk 0:00:01]}  Kc6 {[%clk 0:00:05]} 50. Rh6+ {[%clk 0:00:02]}  Kc7 {[%clk 0:00:06]} 51. Rh7+ {[%clk 0:00:02]}  Kb6 {[%clk 0:00:06]} 52. Rh6+ {[%clk 0:00:02]}  Bc6 {[%clk 0:00:07]} 53. Kf1 {[%clk 0:00:02]}  e3 {[%clk 0:00:07]} 54. fxe3 {[%clk 0:00:02]}  Rxe3 {[%clk 0:00:08]} 55. Kf2 {[%clk 0:00:02]}  d2 {[%clk 0:00:07]} 56. Rd6 {[%clk 0:00:02]}  Rf3+ {[%clk 0:00:07]} 57. Ke2 {[%clk 0:00:02]}  Rxg3 {[%clk 0:00:07]} 58. Kxd2 {[%clk 0:00:03]}  Rxb3 {[%clk 0:00:07]} 59. Rg6 {[%clk 0:00:03]}  g3 {[%clk 0:00:07]} 60. f5 {[%clk 0:00:03]}  g2 {[%clk 0:00:07]} 61. f6 {[%clk 0:00:03]}  Rf3 {[%clk 0:00:07]} 62. Rxg2 {[%clk 0:00:02]}  Rxf6 {[%clk 0:00:07]} 63. Rg4 {[%clk 0:00:03]}  Rd6+ {[%clk 0:00:07]} 64. Kc2 {[%clk 0:00:03]}  Ba4+ {[%clk 0:00:07]} 65. Kb2 {[%clk 0:00:03]}  Kc5 {[%clk 0:00:07]} 66. Rg5+ {[%clk 0:00:03]}  Rd5 {[%clk 0:00:08]} 67. Rg2 {[%clk 0:00:03]}  Bc6 {[%clk 0:00:06]} 68. Rc2+ {[%clk 0:00:03]}  Kb5 {[%clk 0:00:06]} 69. Rh2 {[%clk 0:00:03]}  Rd3 {[%clk 0:00:06]} 70. Kc2 {[%clk 0:00:03]}  Rc3+ {[%clk 0:00:06]} 71. Kb2 {[%clk 0:00:04]}  Ka4 {[%clk 0:00:06]} 72. Rf2 {[%clk 0:00:04]}  Re3 {[%clk 0:00:06]} 73. Rh2 {[%clk 0:00:03]}  Bb5 {[%clk 0:00:06]} 74. Rh5 {[%clk 0:00:03]}  Re2+ {[%clk 0:00:06]} 75. Kc1 {[%clk 0:00:03]}  b3 {[%clk 0:00:06]} 76. Rh4+ {[%clk 0:00:02]}  Ka3 {[%clk 0:00:06]} 77. Kd1 {[%clk 0:00:02]}  Rc2 {[%clk 0:00:05]} 78. Rh5 {[%clk 0:00:01]}  Kb4 {[%clk 0:00:04]} 79. Rh4+ {[%clk 0:00:01]}  Rc4 {[%clk 0:00:05]} 80. Rh2 {[%clk 0:00:01]}  Ka3 {[%clk 0:00:05]} 81. Rh7 {[%clk 0:00:00]}  b2 {[%clk 0:00:05]} 0-1


[Site "https://www.chess.com"]

[Event "Titled Tuesday Blitz July 18 Early 2023"]
[White "Antipov, Mikhail Al."]
[Black "Oparin, Grigoriy"]
[WhiteFideId "4107012"]
[BlackFideId "24125890"]
[WhiteElo "2911"]
[BlackElo "2987"]
[Result "0-1"]
[Round "5"]
[TimeControl "180+2"]
[Date "2023.07.18"]
[WhiteClock "0:00:04"]
[BlackClock "0:00:02"]
[Board "6"]

1. e4 {[%clk 0:03:00]}  e5 {[%clk 0:02:58]} 2. Nf3 {[%clk 0:03:00]}  Nc6 {[%clk 0:02:59]} 3. Bc4 {[%clk 0:03:00]}  Nf6 {[%clk 0:02:59]} 4. d3 {[%clk 0:03:00]}  Bc5 {[%clk 0:02:58]} 5. O-O {[%clk 0:02:56]}  d6 {[%clk 0:02:58]} 6. c3 {[%clk 0:02:56]}  a5 {[%clk 0:02:56]} 7. Re1 {[%clk 0:02:54]}  h6 {[%clk 0:02:54]} 8. Nbd2 {[%clk 0:02:54]}  O-O {[%clk 0:02:54]} 9. Nf1 {[%clk 0:02:47]}  Bb6 {[%clk 0:02:48]} 10. Ng3 {[%clk 0:02:34]}  Be6 {[%clk 0:02:45]} 11. b3 {[%clk 0:02:33]}  Re8 {[%clk 0:02:33]} 12. Bb5 {[%clk 0:02:19]}  Bd7 {[%clk 0:02:25]} 13. h3 {[%clk 0:02:08]}  d5 {[%clk 0:02:14]} 14. Ba3 {[%clk 0:02:01]}  d4 {[%clk 0:01:50]} 15. Bxc6 {[%clk 0:01:50]}  Bxc6 {[%clk 0:01:51]} 16. cxd4 {[%clk 0:01:48]}  Bxd4 {[%clk 0:01:49]} 17. Nxd4 {[%clk 0:01:48]}  Qxd4 {[%clk 0:01:50]} 18. Nf5 {[%clk 0:01:46]}  Qd7 {[%clk 0:01:49]} 19. Re3 {[%clk 0:01:39]}  Kh7 {[%clk 0:01:43]} 20. Rf3 {[%clk 0:01:04]}  Nh5 {[%clk 0:01:34]} 21. g3 {[%clk 0:00:59]}  a4 {[%clk 0:01:12]} 22. Qe2 {[%clk 0:00:40]}  axb3 {[%clk 0:01:06]} 23. axb3 {[%clk 0:00:41]}  Bb5 {[%clk 0:01:05]} 24. Kh2 {[%clk 0:00:28]}  Red8 {[%clk 0:00:49]} 25. Re3 {[%clk 0:00:28]}  g6 {[%clk 0:00:48]} 26. Bb2 {[%clk 0:00:20]}  Rxa1 {[%clk 0:00:45]} 27. Bxa1 {[%clk 0:00:21]}  Bxd3 {[%clk 0:00:43]} 28. Qg4 {[%clk 0:00:22]}  gxf5 {[%clk 0:00:11]} 29. Qxh5 {[%clk 0:00:21]}  Bxe4 {[%clk 0:00:12]} 30. Bxe5 {[%clk 0:00:19]}  Re8 {[%clk 0:00:11]} 31. Bc3 {[%clk 0:00:16]}  Re6 {[%clk 0:00:10]} 32. Re1 {[%clk 0:00:11]}  Rd6 {[%clk 0:00:08]} 33. g4 {[%clk 0:00:07]}  Rg6 {[%clk 0:00:05]} 34. Be5 {[%clk 0:00:05]}  Qe6 {[%clk 0:00:05]} 35. Bg3 {[%clk 0:00:05]}  fxg4 {[%clk 0:00:04]} 36. Rd1 {[%clk 0:00:04]}  Qf5 {[%clk 0:00:02]} 37. Qh4 {[%clk 0:00:04]}  Qg5 {[%clk 0:00:02]} 38. Qxg5 {[%clk 0:00:04]}  Rxg5 {[%clk 0:00:03]} 39. Rd7 {[%clk 0:00:04]}  Kg6 {[%clk 0:00:03]} 40. hxg4 {[%clk 0:00:03]}  Rxg4 {[%clk 0:00:02]} 41. Rxc7 {[%clk 0:00:04]}  Bc6 {[%clk 0:00:03]} 42. Re7 {[%clk 0:00:03]}  Rb4 {[%clk 0:00:03]} 43. Re3 {[%clk 0:00:03]}  h5 {[%clk 0:00:03]} 44. Bd6 {[%clk 0:00:03]}  Rd4 {[%clk 0:00:03]} 45. Rg3+ {[%clk 0:00:03]}  Kf5 {[%clk 0:00:03]} 46. Bc5 {[%clk 0:00:04]}  Rd5 {[%clk 0:00:02]} 47. Be3 {[%clk 0:00:05]}  f6 {[%clk 0:00:02]} 48. Rg7 {[%clk 0:00:04]}  Rd1 {[%clk 0:00:02]} 49. Rf7 {[%clk 0:00:03]}  Rh1+ {[%clk 0:00:02]} 50. Kg3 {[%clk 0:00:04]}  h4# {[%clk 0:00:02]} 0-1


[Site "https://www.chess.com"]

[Event "Titled Tuesday Blitz July 18 Early 2023"]
[White "Zhigalko, Sergei"]
[Black "Firouzja, Alireza"]
[WhiteFideId "13502956"]
[BlackFideId "12573981"]
[WhiteElo "2883"]
[BlackElo "3099"]
[Result "0-1"]
[Round "5"]
[TimeControl "180+2"]
[Date "2023.07.18"]
[WhiteClock "0:00:00"]
[BlackClock "0:01:46"]
[Board "10"]

1. e4 {[%clk 0:03:00]}  e5 {[%clk 0:03:00]} 2. Nf3 {[%clk 0:03:00]}  Nc6 {[%clk 0:03:00]} 3. Bb5 {[%clk 0:03:00]}  a6 {[%clk 0:03:01]} 4. Ba4 {[%clk 0:03:01]}  Nf6 {[%clk 0:03:01]} 5. O-O {[%clk 0:03:01]}  Be7 {[%clk 0:03:02]} 6. Re1 {[%clk 0:03:02]}  b5 {[%clk 0:03:02]} 7. Bb3 {[%clk 0:03:02]}  d6 {[%clk 0:03:03]} 8. c3 {[%clk 0:03:03]}  O-O {[%clk 0:03:04]} 9. h3 {[%clk 0:03:03]}  Re8 {[%clk 0:03:04]} 10. Ng5 {[%clk 0:03:03]}  Rf8 {[%clk 0:03:04]} 11. Nf3 {[%clk 0:03:03]}  Bb7 {[%clk 0:03:05]} 12. d3 {[%clk 0:02:59]}  h6 {[%clk 0:02:54]} 13. Nbd2 {[%clk 0:03:00]}  Re8 {[%clk 0:02:54]} 14. Nf1 {[%clk 0:03:00]}  Bf8 {[%clk 0:02:55]} 15. N3h2 {[%clk 0:02:57]}  Na5 {[%clk 0:02:51]} 16. Bc2 {[%clk 0:02:57]}  d5 {[%clk 0:02:51]} 17. Qf3 {[%clk 0:02:56]}  c5 {[%clk 0:02:49]} 18. Ng4 {[%clk 0:02:53]}  Nxg4 {[%clk 0:02:47]} 19. hxg4 {[%clk 0:02:54]}  c4 {[%clk 0:02:47]} 20. dxc4 {[%clk 0:02:47]}  Nxc4 {[%clk 0:02:43]} 21. Ng3 {[%clk 0:02:38]}  d4 {[%clk 0:02:43]} 22. Nf5 {[%clk 0:02:30]}  dxc3 {[%clk 0:02:40]} 23. Qxc3 {[%clk 0:02:15]}  Rc8 {[%clk 0:02:37]} 24. Bb3 {[%clk 0:01:57]}  a5 {[%clk 0:02:28]} 25. Qg3 {[%clk 0:01:43]}  a4 {[%clk 0:02:27]} 26. Bc2 {[%clk 0:01:09]}  Nxb2 {[%clk 0:02:16]} 27. Bxb2 {[%clk 0:01:02]}  Rxc2 {[%clk 0:02:15]} 28. Bxe5 {[%clk 0:01:03]}  f6 {[%clk 0:02:16]} 29. Rad1 {[%clk 0:00:53]}  Rd2 {[%clk 0:02:09]} 30. Bd6 {[%clk 0:00:37]}  Rxd1 {[%clk 0:02:08]} 31. Rxd1 {[%clk 0:00:38]}  Bxe4 {[%clk 0:02:08]} 32. Ne3 {[%clk 0:00:20]}  Bxd6 {[%clk 0:02:05]} 33. Rxd6 {[%clk 0:00:21]}  Qc7 {[%clk 0:02:05]} 34. Qf4 {[%clk 0:00:11]}  b4 {[%clk 0:02:02]} 35. Nf5 {[%clk 0:00:02]}  Bxf5 {[%clk 0:01:55]} 36. gxf5 {[%clk 0:00:03]}  Re1+ {[%clk 0:01:55]} 37. Kh2 {[%clk 0:00:03]}  b3 {[%clk 0:01:48]} 38. axb3 {[%clk 0:00:03]}  axb3 {[%clk 0:01:49]} 39. g3 {[%clk 0:00:02]}  b2 {[%clk 0:01:49]} 40. Qd2 {[%clk 0:00:01]}  b1=Q {[%clk 0:01:48]} 41. Rd8+ {[%clk 0:00:01]}  Kh7 {[%clk 0:01:49]} 42. Qd5 {[%clk 0:00:02]}  Rh1+ {[%clk 0:01:47]} 43. Kg2 {[%clk 0:00:02]}  Qcb7 {[%clk 0:01:46]} 44. Rh8+ {[%clk 0:00:00]}  Kxh8 {[%clk 0:01:46]} 0-1


[Site "https://www.chess.com"]

[Event "Titled Tuesday Blitz July 18 Early 2023"]
[White "Zemlyanskii, Ivan"]
[Black "Theodorou, Nikolas"]
[WhiteFideId "24249971"]
[BlackFideId "4262875"]
[WhiteElo "2880"]
[BlackElo "3083"]
[Result "0-1"]
[Round "5"]
[TimeControl "180+2"]
[Date "2023.07.18"]
[WhiteClock "0:00:01"]
[BlackClock "0:00:03"]
[Board "11"]

1. d4 {[%clk 0:03:00]}  Nf6 {[%clk 0:02:58]} 2. c4 {[%clk 0:03:00]}  g6 {[%clk 0:02:58]} 3. h4 {[%clk 0:03:00]}  Bg7 {[%clk 0:02:57]} 4. Nc3 {[%clk 0:03:00]}  d6 {[%clk 0:02:57]} 5. e4 {[%clk 0:03:00]}  h5 {[%clk 0:02:58]} 6. Be2 {[%clk 0:02:59]}  O-O {[%clk 0:02:56]} 7. Bg5 {[%clk 0:02:59]}  c5 {[%clk 0:02:55]} 8. d5 {[%clk 0:02:55]}  e6 {[%clk 0:02:56]} 9. g4 {[%clk 0:02:46]}  Qb6 {[%clk 0:02:50]} 10. gxh5 {[%clk 0:02:23]}  Qxb2 {[%clk 0:02:43]} 11. Rc1 {[%clk 0:02:09]}  exd5 {[%clk 0:02:25]} 12. cxd5 {[%clk 0:01:30]}  Nxh5 {[%clk 0:01:47]} 13. Bd2 {[%clk 0:01:26]}  Nd7 {[%clk 0:01:25]} 14. Rb1 {[%clk 0:01:13]}  Qa3 {[%clk 0:01:25]} 15. Rb3 {[%clk 0:00:58]}  Qa5 {[%clk 0:01:24]} 16. Bxh5 {[%clk 0:00:45]}  c4 {[%clk 0:01:03]} 17. Nce2 {[%clk 0:00:30]}  Qxa2 {[%clk 0:00:38]} 18. Rg3 {[%clk 0:00:28]}  Ne5 {[%clk 0:00:39]} 19. Nc1 {[%clk 0:00:18]}  Qb1 {[%clk 0:00:35]} 20. Bf3 {[%clk 0:00:13]}  c3 {[%clk 0:00:28]} 21. Bg5 {[%clk 0:00:05]}  c2 {[%clk 0:00:15]} 22. Qd2 {[%clk 0:00:05]}  f5 {[%clk 0:00:09]} 23. Ne2 {[%clk 0:00:04]}  fxe4 {[%clk 0:00:06]} 24. Bxe4 {[%clk 0:00:05]}  Bf5 {[%clk 0:00:07]} 25. Rb3 {[%clk 0:00:05]}  Bxe4 {[%clk 0:00:06]} 26. Rhh3 {[%clk 0:00:05]}  Nf3+ {[%clk 0:00:05]} 27. Rhxf3 {[%clk 0:00:03]}  Rxf3 {[%clk 0:00:06]} 28. Rb4 {[%clk 0:00:02]}  Re8 {[%clk 0:00:04]} 29. Rxe4 {[%clk 0:00:01]}  Rxe4 {[%clk 0:00:04]} 30. Be3 {[%clk 0:00:02]}  Qb2 {[%clk 0:00:02]} 31. Qa5 {[%clk 0:00:02]}  Rfxe3 {[%clk 0:00:02]} 32. fxe3 {[%clk 0:00:02]}  Rxe3 {[%clk 0:00:02]} 33. Qd8+ {[%clk 0:00:03]}  Kh7 {[%clk 0:00:03]} 34. Kf2 {[%clk 0:00:01]}  Qe5 {[%clk 0:00:03]} 0-1


[Site "https://www.chess.com"]

[Event "Titled Tuesday Blitz July 18 Early 2023"]
[White "Anton Guijarro, David"]
[Black "Bachmann, Axel"]
[WhiteFideId "2285525"]
[BlackFideId "3700488"]
[WhiteElo "2933"]
[BlackElo "2802"]
[Result "1/2-1/2"]
[Round "5"]
[TimeControl "180+2"]
[Date "2023.07.18"]
[WhiteClock "0:00:08"]
[BlackClock "0:00:08"]
[Board "15"]

1. Nf3 {[%clk 0:03:00]}  Nf6 {[%clk 0:02:56]} 2. b3 {[%clk 0:03:00]}  d5 {[%clk 0:02:49]} 3. Bb2 {[%clk 0:03:00]}  Bg4 {[%clk 0:02:50]} 4. h3 {[%clk 0:02:58]}  Bxf3 {[%clk 0:02:49]} 5. exf3 {[%clk 0:02:58]}  Nbd7 {[%clk 0:02:50]} 6. f4 {[%clk 0:02:57]}  e6 {[%clk 0:02:49]} 7. g3 {[%clk 0:02:56]}  Bd6 {[%clk 0:02:46]} 8. Bg2 {[%clk 0:02:56]}  O-O {[%clk 0:02:46]} 9. O-O {[%clk 0:02:57]}  e5 {[%clk 0:02:47]} 10. fxe5 {[%clk 0:02:55]}  Bxe5 {[%clk 0:02:48]} 11. d4 {[%clk 0:02:51]}  Bd6 {[%clk 0:02:48]} 12. c4 {[%clk 0:02:51]}  c6 {[%clk 0:02:46]} 13. Nc3 {[%clk 0:02:51]}  Bb4 {[%clk 0:02:39]} 14. Ne2 {[%clk 0:02:41]}  Re8 {[%clk 0:02:33]} 15. Nf4 {[%clk 0:02:14]}  Nb6 {[%clk 0:02:21]} 16. Nd3 {[%clk 0:02:00]}  Bf8 {[%clk 0:02:16]} 17. Ne5 {[%clk 0:01:51]}  Nfd7 {[%clk 0:01:53]} 18. Qc2 {[%clk 0:01:25]}  dxc4 {[%clk 0:01:34]} 19. bxc4 {[%clk 0:01:24]}  Nxe5 {[%clk 0:01:35]} 20. dxe5 {[%clk 0:01:25]}  Bc5 {[%clk 0:01:36]} 21. Kh2 {[%clk 0:01:17]}  Qe7 {[%clk 0:01:30]} 22. f4 {[%clk 0:01:15]}  Rad8 {[%clk 0:01:30]} 23. Rad1 {[%clk 0:00:53]}  Rxd1 {[%clk 0:01:29]} 24. Rxd1 {[%clk 0:00:54]}  Rd8 {[%clk 0:01:29]} 25. Rxd8+ {[%clk 0:00:39]}  Qxd8 {[%clk 0:01:30]} 26. f5 {[%clk 0:00:39]}  Bd4 {[%clk 0:01:10]} 27. c5 {[%clk 0:00:37]}  Bxb2 {[%clk 0:01:09]} 28. Qxb2 {[%clk 0:00:34]}  Nc4 {[%clk 0:01:04]} 29. Qc3 {[%clk 0:00:22]}  Na5 {[%clk 0:00:38]} 30. e6 {[%clk 0:00:23]}  fxe6 {[%clk 0:00:39]} 31. fxe6 {[%clk 0:00:24]}  b6 {[%clk 0:00:40]} 32. cxb6 {[%clk 0:00:21]}  axb6 {[%clk 0:00:41]} 33. Qe5 {[%clk 0:00:20]}  Qe8 {[%clk 0:00:23]} 34. Qd6 {[%clk 0:00:16]}  g6 {[%clk 0:00:19]} 35. Qd7 {[%clk 0:00:13]}  Kf8 {[%clk 0:00:17]} 36. Qd6+ {[%clk 0:00:12]}  Qe7 {[%clk 0:00:16]} 37. Qb8+ {[%clk 0:00:12]}  Kg7 {[%clk 0:00:16]} 38. Qxb6 {[%clk 0:00:13]}  Nc4 {[%clk 0:00:16]} 39. Qxc6 {[%clk 0:00:13]}  Nd6 {[%clk 0:00:15]} 40. Qd5 {[%clk 0:00:13]}  Kf6 {[%clk 0:00:16]} 41. a4 {[%clk 0:00:10]}  Qxe6 {[%clk 0:00:16]} 42. Qd4+ {[%clk 0:00:10]}  Qe5 {[%clk 0:00:15]} 43. Qh4+ {[%clk 0:00:10]}  Kg7 {[%clk 0:00:15]} 44. Qb4 {[%clk 0:00:11]}  Nf5 {[%clk 0:00:15]} 45. Qa3 {[%clk 0:00:11]}  Qe2 {[%clk 0:00:12]} 46. Qc3+ {[%clk 0:00:10]}  Kh6 {[%clk 0:00:12]} 47. Qf3 {[%clk 0:00:08]}  Qa2 {[%clk 0:00:09]} 48. Qf4+ {[%clk 0:00:07]}  Kg7 {[%clk 0:00:10]} 49. h4 {[%clk 0:00:07]}  h5 {[%clk 0:00:06]} 50. Qe5+ {[%clk 0:00:07]}  Kh7 {[%clk 0:00:06]} 51. a5 {[%clk 0:00:08]}  Nh6 {[%clk 0:00:06]} 52. Qc7+ {[%clk 0:00:07]}  Kh8 {[%clk 0:00:06]} 53. Qc3+ {[%clk 0:00:06]}  Kh7 {[%clk 0:00:06]} 54. Qc7+ {[%clk 0:00:06]}  Kh8 {[%clk 0:00:06]} 55. Qb8+ {[%clk 0:00:07]}  Kh7 {[%clk 0:00:07]} 56. Qb7+ {[%clk 0:00:07]}  Kh8 {[%clk 0:00:06]} 57. a6 {[%clk 0:00:07]}  Ng4+ {[%clk 0:00:06]} 58. Kh3 {[%clk 0:00:07]}  Nf2+ {[%clk 0:00:06]} 59. Kh2 {[%clk 0:00:08]}  Ng4+ {[%clk 0:00:07]} 60. Kh3 {[%clk 0:00:07]}  Nf2+ {[%clk 0:00:07]} 61. Kh2 {[%clk 0:00:08]}  Ng4+ {[%clk 0:00:08]} 1/2-1/2


[Site "https://www.chess.com"]

[Event "Titled Tuesday Blitz July 18 Early 2023"]
[White "Bluebaum, Matthias"]
[Black "Sahib Singh"]
[WhiteFideId "24651516"]
[BlackFideId "25618342"]
[WhiteElo "3017"]
[BlackElo "2659"]
[Result "1-0"]
[Round "5"]
[TimeControl "180+2"]
[Date "2023.07.18"]
[WhiteClock "0:00:47"]
[BlackClock "0:00:37"]
[Board "17"]

1. d4 {[%clk 0:03:00]}  d5 {[%clk 0:02:59]} 2. c4 {[%clk 0:03:00]}  e6 {[%clk 0:02:59]} 3. Nc3 {[%clk 0:03:00]}  c6 {[%clk 0:02:59]} 4. Nf3 {[%clk 0:03:00]}  dxc4 {[%clk 0:02:58]} 5. e4 {[%clk 0:02:59]}  b5 {[%clk 0:02:58]} 6. Qc2 {[%clk 0:03:00]}  Bb7 {[%clk 0:02:57]} 7. Be2 {[%clk 0:03:00]}  Nd7 {[%clk 0:02:57]} 8. O-O {[%clk 0:03:00]}  Ngf6 {[%clk 0:02:56]} 9. b3 {[%clk 0:03:00]}  b4 {[%clk 0:02:54]} 10. e5 {[%clk 0:03:00]}  bxc3 {[%clk 0:02:46]} 11. exf6 {[%clk 0:03:00]}  gxf6 {[%clk 0:02:42]} 12. bxc4 {[%clk 0:02:59]}  c5 {[%clk 0:02:39]} 13. d5 {[%clk 0:02:59]}  Bd6 {[%clk 0:02:34]} 14. Rb1 {[%clk 0:02:55]}  Rb8 {[%clk 0:02:30]} 15. Qxc3 {[%clk 0:02:50]}  Ne5 {[%clk 0:02:29]} 16. Bf4 {[%clk 0:02:43]}  Nxf3+ {[%clk 0:02:00]} 17. Qxf3 {[%clk 0:02:44]}  Bxf4 {[%clk 0:02:00]} 18. Qxf4 {[%clk 0:02:44]}  Rg8 {[%clk 0:01:59]} 19. Bf3 {[%clk 0:02:40]}  e5 {[%clk 0:01:59]} 20. Rfe1 {[%clk 0:02:34]}  Qd6 {[%clk 0:01:57]} 21. Qh6 {[%clk 0:02:19]}  Ke7 {[%clk 0:01:54]} 22. Qxh7 {[%clk 0:02:19]}  Ba6 {[%clk 0:01:53]} 23. Bh5 {[%clk 0:02:09]}  Rgf8 {[%clk 0:01:52]} 24. Rxb8 {[%clk 0:01:56]}  Qxb8 {[%clk 0:01:52]} 25. Rb1 {[%clk 0:01:57]}  Qc7 {[%clk 0:01:31]} 26. Be2 {[%clk 0:01:14]}  Rb8 {[%clk 0:01:26]} 27. h4 {[%clk 0:01:14]}  Rb4 {[%clk 0:01:17]} 28. h5 {[%clk 0:01:04]}  Qb6 {[%clk 0:01:09]} 29. Rxb4 {[%clk 0:00:58]}  Qxb4 {[%clk 0:01:10]} 30. d6+ {[%clk 0:00:55]}  Kxd6 {[%clk 0:01:05]} 31. Qxf7 {[%clk 0:00:52]}  Qb1+ {[%clk 0:00:52]} 32. Bf1 {[%clk 0:00:52]}  Qf5 {[%clk 0:00:37]} 33. h6 {[%clk 0:00:47]} 1-0


[Site "https://www.chess.com"]